[Event "Azerbaijan Men Championship 2024"]
[Site "Baku"]
[Date "2024.04.15"]
[Round "5.3"]
[White "Suleymanli, Aydin"]
[Black "Gadimbayli, Abdulla"]
[Result "1-0"]
[ECO "B01"]
[WhiteElo "2607"]
[BlackElo "2489"]
[Annotator "TA"]
[PlyCount "54"]
[EventDate "2024.04.11"]
[EventType "swiss"]
[EventCountry "AZE"]
[SourceTitle "playchess.com"]
[Source "ChessBase"]
[SourceQuality "1"]
[TimeControl "40/5400+30:1800+30"]

{[%evp 14,54,12,6,18,16,18,0,25,10,67,62,167,5,21,26,6,2,19,14,35,-45,-18,-5,-17,-29,-19,-89,-79,-93,100,68,173,158,168,141,536,527,520,500,29979,29980,29999]} 1. e4 {[%emt 0:00:03]} d5 {[%emt 0:00:52]} 2. exd5 {[%emt 0:00:23]} Qxd5 {[%emt 0:00:07]} 3. Nc3 {[%emt 0:00:04]} Qa5 {[%emt 0:00:09]} 4. d4 {[%emt 0:01:23]} Nf6 {[%emt 0:00:07]} 5. Nf3 {[%emt 0:00:23]} Bf5 {[%emt 0:00:42]} 6. Ne5 {[%emt 0:04:31]} c6 {[%emt 0:00:58]} 7. g4 {[%emt 0:08:55]} Be6 {[%emt 0:01:35]} 8. Nc4 {[%emt 0:14:33]} Qd8 {[%emt 0:11:44]} 9. Ne3 {[%emt 0:05:50]} g6 {[%emt 0:05:21]} 10. f4 {[%emt 0:04:58][%cal Bf2f4,Bf4f5,Bf5g6,Bg6f7][%mdl 32]} Bg7 {[%emt 0:06:14] The position is equal.} 11. Bg2 {[%emt 0:06:53]} h5 {[%emt 0:29:49]} (11... Qd7 $11) 12. f5 $14 {[%emt 0:28:22]} Bc8 {[%emt 0:05:26]} (12... gxf5 $14 13. gxf5 Bc8) 13. Qd3 $2 {[%emt 0:06:07]} ({Only move:} 13. fxg6 $1 $18 fxg6 14. Qd3) 13... Nxg4 $11 {[%emt 0:07:40]} 14. fxg6 {[%emt 0:00:16]} Qxd4 {[%emt 0:11:27]} 15. gxf7+ {[%emt 0:00:02]} Kf8 $1 {[%emt 0:01:15]} 16. Qe2 {[%emt 0:02:29]} Bf6 {[%emt 0:02:12]} 17. h4 {[%emt 0:02:50]} (17. O-O $14 Qe5 18. Bf3 (18. Nxg4 Qxe2 19. Nxe2 Bxg4 $11)) 17... Be6 {[%emt 0:11:26]} 18. Ne4 $1 $132 {[%emt 0:02:57][%mdl 2048] White is not holding back} Nd7 {[%emt 0:00:04]} 19. c3 {[%emt 0:01:20] Some like it hot} Qe5 {[%emt 0:00:05]} 20. Nxg4 {[%emt 0:03:03]} (20. Nc4 $11 Bxc4 21. Qxc4) 20... Bxg4 $17 {[%emt 0:00:31]} 21. Qf2 {[%emt 0:00:50]} Bf5 $2 {[%emt 0:02:26]} (21... Qb5 $1 $17 {stays on course. ...Ne5 is the strong threat.} 22. a4 Qd3) 22. Bf4 $16 {[%emt 0:00:04]} Qe6 {[%emt 0:00:17] [#]} (22... Qd5 $14 23. Nxf6 Qe6+ 24. Ne4 Nf6) 23. O-O $1 $18 {[%emt 0:00:37] Hoping for Nxf6.} Bxe4 {[%emt 0:00:43]} (23... Bg4 24. Ng5) 24. Rae1 {[%emt 0:00:32]} Nc5 $2 {[%emt 0:00:46][%mdl 8192] Loses the game.} (24... Rh7 $16 {is tougher.}) 25. Qxc5 {[%emt 0:00:45]} Qd5 {[%emt 0:00:04] [#]} 26. Qe3 {[%emt 0:00:36]} (26. Bxe4 $2 {too greedy.} Qxc5+ 27. Kh1 Kxf7 $19 (27... Bxh4 $2 28. Rd1 $19)) 26... Bxg2 {[%emt 0:00:54]} (26... Qd3 $18 27. Bxe4 Qxe3+ 28. Bxe3 (28. Rxe3 Kxf7 29. Bg5 Rhf8 $18) 28... Kxf7) 27. Bh6+ {[%emt 0:00:08]} Bg7 {[%emt 0:01:06] Weighted Error Value: White=0.25 (precise) /Black=0.65.  Loses game:     	---       	Black=1      Missed win:     	White=1     	---        Mistake:       	White=2     	Black=5      Inaccurate:     	---       	Black=1      OK:         	White=3     	Black=5      Best:        	White=7     	Black=2      Strong:       	White=2     	Black=1} 1-0

[Event "Azerbaijan Men Championship 2024"]
[Site "Baku"]
[Date "2024.04.15"]
[Round "5.4"]
[White "Rasulov, Vugar"]
[Black "Manafov, Vugar"]
[Result "1/2-1/2"]
[ECO "B23"]
[WhiteElo "2551"]
[BlackElo "2424"]
[Annotator "TA"]
[PlyCount "114"]
[EventDate "2024.04.11"]
[EventType "swiss"]
[EventCountry "AZE"]
[SourceTitle "playchess.com"]
[Source "ChessBase"]
[SourceQuality "1"]
[TimeControl "40/5400+30:1800+30"]

{[%evp 11,114,5,30,36,35,35,62,23,16,0,0,12,54,49,50,54,49,40,46,16,19,16,17,8,16,18,13,24,24,23,163,113,150,167,330,321,330,330,317,255,263,254,260,212,200,202,307,320,368,286,275,275,288,294,294,295,295,288,276,170,170,170,170,170,181,158,158,145,158,8,0,0,0,0,442,0,0,0,0,0,0,0,0,0,0,0,0,0,0,0,0,0,0,0,0,0,0,0,0,0,0,0,0,0,0]} 1. e4 {[%emt 0:00:15]} c5 {[%emt 0:00:50]} 2. Nc3 {[%emt 0:00:18]} e6 {[%emt 0:00:19]} 3. Nge2 {[%emt 0:00:15]} a6 {[%emt 0:00:25]} 4. g3 {[%emt 0:00:15]} b5 {[%emt 0:01:02]} 5. Bg2 {[%emt 0:00:06]} Bb7 {[%emt 0:00:28]} 6. O-O {[%emt 0:00:08]} b4 {[%emt 0:01:02]} 7. Na4 {[%emt 0:00:12]} Nf6 {[%emt 0:01:04]} 8. d3 {[%emt 0:03:05]} d5 {[%emt 0:02:51][%cal Rd5e4]} 9. Bg5 {[%emt 0:02:55] White is slightly better.} dxe4 {[%emt 0:14:01]} 10. dxe4 {[%emt 0:09:27]} Qxd1 {[%emt 0:02:53]} 11. Rfxd1 {[%emt 0:00:14] With the idea e5.} h6 {[%emt 0:06:45]} 12. Bxf6 {[%emt 0:01:13]} gxf6 {[%emt 0:00:07]} 13. Nb6 $40 {[%emt 0:08:48][%mdl 128] Inhibits Nd7. White has some attack.} Ra7 {[%emt 0:00:22]} 14. c3 {[%emt 0:01:22] Strongly threatening cxb4.} Be7 {[%emt 0:06:09]} 15. cxb4 {[%emt 0:02:17]} cxb4 {[%emt 0:00:21]} 16. Rac1 {[%emt 0:00:32] Black must now prevent Nc8.} O-O $1 {[%emt 0:02:45]} 17. Nd7 {[%emt 0:05:16]} Rd8 {[%emt 0:03:10]} 18. Nxb8 {[%emt 0:00:10]} Rxb8 {[%emt 0:00:05]} 19. Rd7 {[%emt 0:00:17]} Bd8 {[%emt 0:00:47]} 20. Nf4 {[%emt 0:00:13]} Raa8 {[%emt 0:21:26]} (20... a5 $11) 21. Nh5 {[%emt 0:01:25]} (21. Bf3 $18 {And now Bh5 would win.} e5 22. Nd5) 21... e5 {[%emt 0:00:23]} 22. Bf1 {[%emt 0:05:30][%cal Bg2f1,Bf1c4,Bc4d5,Bd5c6][%mdl 32] White is much more active. Black is weak on the light squares} Kf8 $2 {[%emt 0:04:33]} (22... Bxe4 {keeps fighting.} 23. Rxd8+ Rxd8 24. Nxf6+ Kh8) 23. Bc4 $18 {[%emt 0:00:32]} Be7 {[%emt 0:00:08] [#]} 24. Nxf6 {[%emt 0:00:42][%mdl 512]} Bc6 {[%emt 0:00:48][%cal Ob8c8]} 25. Bd5 {[%emt 0:00:43]} Bxd7 {[%emt 0:00:43]} 26. Nxd7+ {[%emt 0:00:11]} Ke8 {[%emt 0:00:08]} 27. Nxb8 {[%emt 0:00:37]} Rxb8 {[%emt 0:00:04][%mdl 4096] Endgame. KRB-KRB} 28. Rc6 {[%emt 0:00:05][%csl LRa6,LRh6]} a5 {[%emt 0:01:01]} (28... h5 $142 29. Rh6 (29. Rxa6 Kf8 $18) 29... h4 30. Rh8+ (30. Rxa6 hxg3 31. Kg2 gxh2 $16) (30. gxh4 Rd8 $18) 30... Bf8 31. Rxh4 (31. gxh4 Rb6 $18) 31... Bg7) 29. Rxh6 {[%emt 0:00:07]} Rc8 {[%emt 0:00:11]} 30. Bc6+ {[%emt 0:00:39]} Kd8 {[%emt 0:00:05]} 31. Rh8+ {[%emt 0:00:20]} Kc7 {[%emt 0:00:04]} 32. Rxc8+ {[%emt 0:00:04]} Kxc8 {[%emt 0:00:02] KB-KB} 33. Bd5 {[%emt 0:00:25]} f6 {[%emt 0:00:07]} 34. Kg2 {[%emt 0:00:15]} Kd7 {[%emt 0:00:35]} 35. f4 {[%emt 0:00:27]} exf4 {[%emt 0:01:22]} 36. gxf4 {[%emt 0:00:08]} f5 {[%emt 0:00:07]} 37. exf5 {[%emt 0:02:10]} a4 {[%emt 0:00:46]} 38. Kg3 {[%emt 0:00:21]} Kd6 {[%emt 0:00:39]} 39. Bc4 {[%emt 0:01:32] a3 would now be deadly.} b3 {[%emt 0:00:16] [#]} 40. Bxb3 {[%emt 0:00:00]} axb3 $11 {[%emt 0:00:00]} 41. axb3 $16 {[%emt 0:04:12] KB-KP} Kd7 $1 {[%emt 0:07:00]} 42. h4 {[%emt 0:03:28]} Ke8 $2 {[%emt 0:01:02][%mdl 8192] [#]} (42... Bc5 $1 $11 {and Black stays safe.}) 43. h5 $2 {[%emt 0:00:15]} (43. f6 $1 $18 {[%cal Rf6e7]} Bc5 (43... Bxf6 44. b4 $11) 44. Kg4) 43... Kf7 $11 {[%emt 0:01:10] The position is equal.} 44. Kf3 {[%emt 0:00:01]} Kf6 {[%emt 0:03:37]} 45. Ke4 {[%emt 0:00:45]} Bf8 {[%emt 0:00:19]} 46. h6 {[%emt 0:01:42]} Bxh6 {[%emt 0:00:12]} 47. b4 {[%emt 0:00:01]} Bf8 {[%emt 0:00:23]} 48. b5 {[%emt 0:00:01]} Bc5 {[%emt 0:00:06]} 49. Kd5 {[%emt 0:01:38]} Be3 {[%emt 0:00:06]} 50. Ke4 {[%emt 0:01:41]} Bc5 {[%emt 0:00:27]} 51. b3 {[%emt 0:00:15]} Bf2 {[%emt 0:00:12]} 52. Kd5 {[%emt 0:00:31]} Kxf5 {[%emt 0:00:04]} 53. Kc6 {[%emt 0:00:10]} Be3 {[%emt 0:00:34]} 54. b6 {[%emt 0:04:04]} Bxf4 {[%emt 0:00:13]} 55. b4 {[%emt 0:00:31]} Ke6 {[%emt 0:00:08]} 56. b5 {[%emt 0:00:07]} Bg3 {[%emt 0:00:17]} 57. Kb7 {[%emt 0:00:11]} Kd5 {[%emt 0:00:08] Weighted Error Value: White=0.41/Black=0.30.  Loses game:     	---       	Black=1      Missed win:     	White=1     	---        Mistake:       	White=2     	Black=3      Inaccurate:     	White=3     	Black=3      OK:         	White=13    	Black=25     Best:        	White=2     	Black=4      Strong:       	---       	Black=2      Brilliant:      	White=1     	---} 1/2-1/2

[Event "Azerbaijan Men Championship 2024"]
[Site "Baku"]
[Date "2024.04.15"]
[Round "5.5"]
[White "Babazada, Khazar"]
[Black "Ibrahimli, Murad"]
[Result "1-0"]
[ECO "C64"]
[WhiteElo "2474"]
[BlackElo "2396"]
[Annotator "TA"]
[PlyCount "81"]
[EventDate "2024.04.11"]
[EventType "swiss"]
[EventCountry "AZE"]
[SourceTitle "playchess.com"]
[Source "ChessBase"]
[SourceQuality "1"]
[TimeControl "40/5400+30:1800+30"]

{[%evp 18,81,19,16,43,33,36,25,37,25,27,23,36,9,12,11,20,11,37,18,31,31,71,0,6,0,2,0,2,0,6,0,0,0,18,0,27,15,52,54,60,60,120,11,17,19,329,317,1104,998,1473,1489,1287,1224,5743,5245,2270,742,1296,719,29978,29979,29988,29989,29993,29994]} 1. e4 {[%emt 0:00:02]} e5 {[%emt 0:02:38]} 2. Nf3 {[%emt 0:00:05]} Nc6 {[%emt 0:00:10]} 3. Bb5 {[%emt 0:00:06]} Bc5 {[%emt 0:05:12]} 4. O-O {[%emt 0:02:58]} Nd4 {[%emt 0:00:31]} 5. Nxd4 {[%emt 0:01:02]} Bxd4 {[%emt 0:00:05]} 6. c3 {[%emt 0:00:04]} Bb6 {[%emt 0:00:07]} 7. d4 {[%emt 0:00:04]} c6 {[%emt 0:02:10]} 8. Ba4 {[%emt 0:00:19]} d6 {[%emt 0:01:20]} 9. Na3 {[%emt 0:16:30]} Nf6 {[%emt 0:01:36]} 10. Bg5 {[%emt 0:04:11]} h6 {[%emt 0:03:36]} 11. Bxf6 {[%emt 0:00:25]} Qxf6 {[%emt 0:03:28]} 12. d5 {[%emt 0:00:20]} Bd7 {[%emt 0:00:37] White has an edge.} 13. Nc4 {[%emt 0:01:04]} Bc7 {[%emt 0:00:17] Threatens to win with ...b5.} 14. dxc6 {[%emt 0:00:46]} bxc6 {[%emt 0:00:31]} 15. Qd3 {[%emt 0:00:34]} O-O {[%emt 0:04:49]} 16. Rad1 {[%emt 0:02:06]} Rfd8 {[%emt 0:02:10]} 17. Rd2 {[%emt 0:02:11][%cal Of1d1]} (17. Nxd6 Bg4 18. f3 Rxd6 $19) 17... Be8 {[%emt 0:17:58]} 18. Ne3 {[%emt 0:03:26]} Bb6 {[%emt 0:01:18] Black is weak on the light squares} 19. Rfd1 {[%emt 0:00:50]} g6 {[%emt 0:03:56]} 20. g3 {[%emt 0:09:20]} ({White should try} 20. Ng4 $16 Qf4 21. Qf3) 20... h5 {[%emt 0:06:57]} 21. h4 {[%emt 0:00:13]} Kg7 {[%emt 0:00:42]} 22. Kg2 {[%emt 0:00:30]} Rab8 {[%emt 0:03:34]} 23. Qe2 {[%emt 0:00:42]} Qe7 {[%emt 0:06:26]} 24. Nc4 {[%emt 0:01:53]} Bc7 {[%emt 0:02:17]} 25. b4 {[%emt 0:00:39]} Qe6 {[%emt 0:03:09]} 26. Bb3 {[%emt 0:01:15][%cal Oc4d6]} Qe7 {[%emt 0:10:16]} 27. Kg1 {[%emt 0:00:08]} f5 {[%emt 0:06:04]} 28. exf5 {[%emt 0:02:51]} gxf5 {[%emt 0:00:24]} 29. Ne3 {[%emt 0:00:37]} Qf8 {[%emt 0:09:44] [#]} (29... Qf6 $14) 30. Qf3 {[%emt 0:00:21] White has more active pieces.} (30. Qc4 $1 $16) 30... f4 $11 {[%emt 0:00:26]} 31. gxf4 {[%emt 0:00:10]} exf4 $2 {[%emt 0:01:03][%mdl 8192] [#] Black cannot hold the game after this.} (31... d5 $11) 32. Kh1 $1 $18 {[%emt 0:00:07] Black must now prevent Rg1+.} (32. Ng2 d5 $14) 32... Kh6 $2 {[%emt 0:02:22]} (32... fxe3 $2 33. Rg1+ Bg6 34. Qxh5 $18) (32... Rd7 33. Be6 (33. Rg1+ Kh8 $18) 33... Rf7 (33... fxe3 $2 34. Rg1+ Bg6 35. Qxh5 $18)) 33. Rg1 {[%emt 0:00:23]} Bg6 {[%emt 0:00:30] [#] Inhibits Qe4.} 34. Rxg6+ $1 {[%emt 0:01:16][%mdl 512]} Kxg6 {[%emt 0:00:01][%cal Bh6g6,Bg6g7,Bg7g8,Bg8f8][%mdl 32]} 35. Bc2+ {[%emt 0:00:37]} Kg7 {[%emt 0:00:24]} 36. Nf5+ {[%emt 0:00:37]} (36. Qxc6 fxe3 37. Qxc7+ Qf7 38. Qxf7+ Kxf7 39. fxe3 Ke7 $11) 36... Kg8 {[%emt 0:00:34]} 37. Qxc6 {[%emt 0:03:47]} (37. Qxh5 $142 Rd7 38. Re2) 37... Bb6 {[%emt 0:00:23]} 38. a4 {[%emt 0:03:30] And now Qg2+ would win.} ({Not} 38. Rxd6 Rxd6 39. Bb3+ Kh7 40. Nxd6 Qe7 $14) ({Less strong is} 38. Nxd6 Qf6 $14) 38... a5 {[%emt 0:00:42]} 39. Re2 {[%emt 0:04:07] White mates.} ({Weaker is} 39. Nxd6 Qf6 $11) 39... Qf6 {[%emt 0:00:43]} 40. Qd5+ {[%emt 0:00:00]} Kf8 {[%emt 0:00:00]} 41. Bb3 {[%emt 0:04:01] Weighted Error Value: White=0.13 (very precise) /Black=0.61.  Loses game:     	---       	Black=1      Mistake:       	White=2     	Black=2      Inaccurate:     	White=1     	Black=4      OK:         	White=9     	Black=6      Best:        	White=1     	Black=1      Strong:       	White=1     	---} 1-0

[Event "Azerbaijan Men Championship 2024"]
[Site "Baku"]
[Date "2024.04.15"]
[Round "5.6"]
[White "Suleymanli, Suleyman"]
[Black "Sadikhov, Ulvi"]
[Result "0-1"]
[ECO "D94"]
[WhiteElo "2246"]
[BlackElo "2497"]
[Annotator "TA"]
[PlyCount "94"]
[EventDate "2024.04.11"]
[EventType "swiss"]
[EventCountry "AZE"]
[SourceTitle "playchess.com"]
[Source "ChessBase"]
[SourceQuality "1"]
[TimeControl "40/5400+30:1800+30"]

{[%evp 38,94,-85,-132,-141,-143,-137,-128,-143,-133,-152,-160,-117,-165,-147,-155,-127,-138,-110,-97,-133,-108,-10,-170,-179,-190,-190,-168,-176,-169,-191,-195,-194,-207,-190,-472,-475,-478,-459,-504,-492,-930,-700,-933,-860,-1315,-1294,-1219,-1244,-1246,-1198,-1174,-1141,-29975,-29976,-29967,-3878,-29959,-29959]} 1. Nf3 {[%emt 0:00:02]} g6 {[%emt 0:00:26]} 2. d4 {[%emt 0:00:36]} Bg7 {[%emt 0:00:06]} 3. c4 {[%emt 0:00:48]} c5 {[%emt 0:00:04]} 4. e3 {[%emt 0:03:38]} Nf6 {[%emt 0:00:05]} 5. Nc3 {[%emt 0:00:40]} cxd4 {[%emt 0:00:10]} 6. exd4 {[%emt 0:00:59]} O-O {[%emt 0:00:06]} 7. Be2 {[%emt 0:01:59]} d5 {[%emt 0:00:13]} 8. c5 {[%emt 0:00:11]} Nc6 {[%emt 0:03:37]} 9. O-O {[%emt 0:00:52]} Ne4 {[%emt 0:02:56]} 10. Be3 {[%emt 0:09:01]} Bg4 {[%emt 0:08:41]} 11. h3 {[%emt 0:11:11]} Bxf3 {[%emt 0:01:07]} 12. Bxf3 {[%emt 0:00:06]} f5 {[%emt 0:05:16]} 13. Qb3 {[%emt 0:11:18]} e6 {[%emt 0:00:27]} 14. Bxe4 {[%emt 0:16:37]} fxe4 {[%emt 0:00:14]} 15. Qxb7 {[%emt 0:09:41]} Nxd4 {[%emt 0:01:16]} 16. Rad1 {[%emt 0:05:55]} Nf5 {[%emt 0:10:32]} 17. Bf4 {[%emt 0:02:06]} Rf7 {[%emt 0:10:06]} 18. Qa6 {[%emt 0:02:39]} Qc8 {[%emt 0:00:49]} 19. Qa3 {[%emt 0:01:10]} Bf8 {[%emt 0:07:22]} (19... Bd4 $1 $19 20. b4) 20. Na4 {[%emt 0:00:35]} (20. Rc1 $142) 20... Qc6 $17 {[%emt 0:05:27]} 21. b4 {[%emt 0:03:05]} a5 {[%emt 0:00:07]} 22. b5 {[%emt 0:02:35]} (22. Nb6 $2 Raa7 23. Rc1 axb4 24. Qxb4 Rxa2) 22... Qxb5 {[%emt 0:00:18]} 23. Rb1 {[%emt 0:00:30]} Qe8 {[%emt 0:00:53]} 24. Nb6 {[%emt 0:02:26]} Raa7 {[%emt 0:00:38]} 25. Be5 {[%emt 0:00:59]} (25. Qa4 $17 {was worth a try.} Qxa4 26. Nxa4) 25... Qc6 $19 {[%emt 0:00:26]} 26. Rfc1 {[%emt 0:00:07]} Bh6 {[%emt 0:12:31]} 27. Rc2 {[%emt 0:00:25]} d4 {[%emt 0:02:44]} 28. Qa4 {[%emt 0:02:46]} Qxa4 {[%emt 0:00:39]} 29. Nxa4 {[%emt 0:00:02] [#]} d3 {[%emt 0:00:58]} (29... Bg7 $1 $17 {[%cal Rg7e5]} 30. Bxg7 Kxg7) 30. Rc4 $2 {[%emt 0:01:29] [#]} (30. Rcb2 $11) 30... Rab7 $1 $19 {[%emt 0:00:06]} 31. Rxb7 {[%emt 0:02:19]} Rxb7 {[%emt 0:00:03]} 32. c6 {[%emt 0:00:01]} Rb1+ {[%emt 0:04:03]} 33. Kh2 {[%emt 0:00:01]} d2 {[%emt 0:16:07]} 34. Nc3 {[%emt 0:03:18]} (34. Rxe4 $2 d1=Q (34... d1=R $2 35. g3 $19) (34... d1=R $2 35. g3 $19)) 34... Rc1 {[%emt 0:00:17]} (34... d1=R 35. Nxb1 Rxb1 36. c7 $11) (34... d1=Q 35. Nxd1 Rxd1 36. c7 $11) 35. c7 {[%emt 0:00:22]} (35. Rxe4 $2 Rxc3 (35... d1=B 36. c7 $16) (35... d1=R 36. Nxd1 Rxc6 37. g4 $11) (35... d1=N 36. c7 $11) 36. Bxc3 d1=Q $19 (36... d1=B $2 37. c7 $18)) 35... Ne7 {[%emt 0:00:02]} 36. c8=Q+ $2 {[%emt 0:00:32]} (36. c8=R+ $2 Nxc8 37. Rxc8+ Kf7 38. Rc7+ Ke8 39. Rc8+ (39. Rxh7 $2 Rxc3 40. Rh8+ Bf8 $19) 39... Ke7 40. Rc7+ Kd8 41. Rxh7 Rxc3 (41... d1=R $2 42. Nxd1 Bf8 43. Nc3 $18) 42. Bxc3 Bf4+ (42... d1=B $2 43. Rxh6 e3 44. fxe3 $18) (42... d1=Q $2 43. Bxa5+ Kc8 44. Rxh6 $17) 43. g3 Bxg3+ (43... d1=B $2 44. Bxa5+ $18) (43... d1=Q $2 44. gxf4 e3 45. Bf6+ Ke8 46. fxe3 $19) 44. Kxg3 d1=Q $19 (44... d1=B $2 45. Bxa5+ Kc8 46. Re7 $18)) (36. Rd4 Bg7 (36... Rxc3 $2 37. Rd8+ Kf7 38. Bxc3 $18) 37. Rd8+ Kf7 38. Bxg7 Kxg7 39. Rd7 Rxc3 40. Rxe7+ Kf6 41. Rd7) 36... Nxc8 $19 {[%emt 0:00:03]} 37. Rxc8+ {[%emt 0:00:05]} Kf7 {[%emt 0:00:12]} 38. Rd8 {[%emt 0:02:37]} Ke7 {[%emt 0:00:45]} 39. Rh8 {[%emt 0:03:36]} (39. Rxd2 $142 Bxd2 40. Nxe4) 39... Rxc3 $19 {[%emt 0:00:06]} (39... d1=R $2 40. Rxh7+ Ke8 41. Nxd1 $18 (41. Rxh6 Rh1+ 42. Kg3 e3 $18)) 40. Rxh7+ {[%emt 0:00:00]} Ke8 {[%emt 0:00:00]} 41. Bxc3 {[%emt 0:00:42]} Bf4+ {[%emt 0:00:36]} (41... d1=B $2 42. Rxh6 Kf7 43. Rh7+ (43. Bxa5 g5 $18) 43... Kf8 44. Bxa5 $18) 42. g3 {[%emt 0:00:05]} d1=Q {[%emt 0:00:05]} (42... d1=B $2 43. gxf4 a4 44. Bb4 $18 (44. Rh8+ Ke7 $18)) 43. gxf4 {[%emt 0:01:05]} e3 {[%emt 0:00:14]} 44. Rh8+ {[%emt 0:00:16]} Kd7 {[%emt 0:00:30]} 45. Bxa5 {[%emt 0:00:50]} Qe2 {[%emt 0:00:52]} (45... exf2 $2 {loses.} 46. Rd8+ Ke7 47. Rxd1 $18) 46. Rh7+ {[%emt 0:01:32]} Kc8 {[%emt 0:00:24]} (46... Kc6 $142 47. Be1 exf2 (47... Qxe1 $2 48. fxe3 Qxe3 49. Kh1 $19) 48. Bxf2 Qxf2+ 49. Kh1 g5 (49... Qxf4 $2 50. a4 $19) 50. fxg5 Qf1+ (50... Qxa2 $2 51. Rh4 $19) 51. Kh2 Qf4+ 52. Kg1 Qxg5+ (52... Qc1+ $2 53. Kf2 $19) 53. Kh2 Qe5+ (53... Qd2+ {gets mated.} 54. Kg1 Qd1+ 55. Kg2 Qc2+ 56. Kf3 Qxh7 57. Ke3 Qxh3+ 58. Kf4 Kd5 59. Kg5 Qf5+ 60. Kh4 Qg6 61. Kh3 Ke4 62. Kh4 Kf4 63. Kh3 Qg3#) 54. Kg1 Qc5+ 55. Kh1 Qc1+ 56. Kh2 Qc2+ 57. Kg3 Qxh7 58. Kf4 Qf5+ (58... Qxh3 59. Ke4 Kc5 60. a4 Qg3 61. a5 Kc4 62. a6 Kc3 63. a7 Kd2 64. Kd4 Qc3+ 65. Ke4 Qe3#) 59. Ke3 Kd5 (59... Qxh3+ 60. Kd4 Qg4+ 61. Ke3 Kd5 62. a3 Qg3+ 63. Kd2 Qf3 64. Ke1 Kc4 65. Kd2 Qf2+ 66. Kd1 Kc3 67. Kc1 Qg1#) 60. a3 Qxh3+ 61. Kf4 e5+ (61... Qxa3 62. Kg5 Qg3+ 63. Kf6 Qg8 64. Ke7 Qg7+ 65. Kd8 Kd6 66. Ke8 Qg8#) 62. Kg5 Ke6 (62... Qxa3 {leads to mate.} 63. Kf6 Qf3+ 64. Kg5 Ke6 65. Kh6 Kf6 66. Kh7 Qb7+ 67. Kh8 Qg7#) 63. Kg6 Qg2+ (63... Qxa3 64. Kh5 Qg3 65. Kh6 Kf6 66. Kh7 Qg7#) 64. Kh7 Kf6 65. Kh8 Qg7#) 47. Be1 {[%emt 0:04:22]} exf2 {[%emt 0:02:11]} 0-1